fUST/lending_fUST_20250206
["ID","MTS","AMOUNT","RATE_DAILY","PERIOD"]
[351788388,1738788646881,-500.0,0.00013835,2]
[351788390,1738788646892,-658.96,0.00013835,2]
[351788392,1738788646905,-506.19487016,0.00013835,2]
[351788394,1738788646915,-811.96,0.00013835,2]
[351788396,1738788646925,-500.0,0.00013835,2]
[351788397,1738788646935,-500.0,0.00013835,2]
[351788399,1738788646944,-667.92,0.00013835,2]
[351788401,1738788646954,-500.0,0.00013835,2]
[351788403,1738788646964,-687.26,0.00013835,2]
[351788405,1738788646974,-500.0,0.00013835,2]
[351788407,1738788646986,-500.0,0.00013835,2]
[351788409,1738788646997,-311.54707333,0.00013835,2]
[351788411,1738788647006,-500.0,0.00013835,2]
[351788413,1738788647016,-500.0,0.00013835,2]
[351788415,1738788647026,-500.0,0.00013835,2]
[351788418,1738788647035,-1205.0,0.00013835,2]
[351788420,1738788647046,-1567.81,0.00013835,2]
[351788422,1738788647055,-500.0,0.00013835,2]
[351788424,1738788647064,-1036.56,0.00013835,2]
[351788426,1738788647074,-500.0,0.00013835,2]
[351788428,1738788647083,-1263.91,0.00013835,2]
[351788430,1738788647093,-500.0,0.00013835,2]
[351788431,1738788647102,-188.0,0.00013835,2]
[351788434,1738788647112,-500.0,0.00013835,2]
[351788436,1738788647122,-500.0,0.00013835,2]
[351788438,1738788647131,-389.98335779,0.00013835,2]
[351788440,1738788647140,-500.0,0.00013835,2]
[351788442,1738788647151,-500.0,0.00013835,2]
[351788444,1738788647160,-995.41,0.00013835,2]
[351788445,1738788647171,-2254.92,0.00013835,2]
[351788448,1738788647181,-500.0,0.00013835,2]
[351788450,1738788647191,-832.6,0.00013835,2]
[351788452,1738788647200,-1191.3,0.00013835,2]
[351788454,1738788647211,-500.0,0.00013835,2]
[351788456,1738788647221,-500.0,0.00013835,2]
[351788458,1738788647231,-462.86528654,0.00013835,2]
[351788460,1738788647242,-777.71,0.00013835,2]
[351788462,1738788647252,-500.0,0.00013835,2]
[351788464,1738788647262,-500.0,0.00013835,2]
[351788466,1738788647271,-500.0,0.00013835,2]
[351788468,1738788647281,-673.97,0.00013835,2]
[351788470,1738788647291,-500.0,0.00013835,2]
[351788472,1738788647300,-500.0,0.00013835,2]
[351788473,1738788647311,-3664.51,0.00013835,2]
[351788475,1738788647322,-551.85,0.00013835,2]
[351788477,1738788647332,-500.0,0.00013835,2]
[351788479,1738788647342,-150.16573334,0.00013835,2]
[351788481,1738788647352,-500.0,0.00013835,2]
[351788483,1738788647363,-500.0,0.00013835,2]
[351788485,1738788647374,-515.49596102,0.00013835,2]
[351788487,1738788647384,-500.0,0.00013835,2]
[351788489,1738788647395,-528.71,0.00013835,2]
[351788491,1738788647406,-500.0,0.00013835,2]
[351788493,1738788647416,-1701.5,0.00013835,2]
[351788496,1738788647425,-3775.22,0.00013835,2]
[351788498,1738788647435,-500.0,0.00013835,2]
[351788500,1738788647446,-500.0,0.00013835,2]
[351788502,1738788647456,-1334.63,0.00013835,2]
[351788504,1738788647468,-500.0,0.00013835,2]
[351788506,1738788647479,-301.81898632,0.00013835,2]
[351788508,1738788647490,-500.0,0.00013835,2]
[351788510,1738788647502,-465.4568436,0.00013835,2]
[351788512,1738788647512,-607.6328422,0.00013835,2]
[351788514,1738788647523,-500.0,0.00013835,2]
[351788516,1738788647534,-500.0,0.00013835,2]
[351788518,1738788647544,-691.84,0.00013835,2]
[351788519,1738788647554,-516.93897456,0.00013835,2]
[351788522,1738788647564,-500.0,0.00013835,2]
[351788523,1738788647574,-151.0,0.00013835,2]
[351788526,1738788647584,-500.0,0.00013835,2]
[351788528,1738788647594,-516.34,0.00013835,2]
[351788529,1738788647604,-658.65,0.00013835,2]
[351788532,1738788647614,-500.0,0.00013835,2]
[351788534,1738788647624,-500.0,0.00013835,2]
[351788535,1738788647633,-1331.76,0.00013835,2]
[351788537,1738788647643,-500.0,0.00013835,2]
[351788539,1738788647653,-209.709451,0.00013835,2]
[351788541,1738788647663,-500.0,0.00013835,2]
[351788543,1738788647674,-500.0,0.00013835,2]
[351788545,1738788647684,-500.0,0.00013835,2]
[351788547,1738788647694,-500.0,0.00013835,2]
[351788550,1738788647705,-643.09,0.00013835,2]
[351788551,1738788647716,-981.14,0.00013835,2]
[351788554,1738788647728,-765.65,0.00013835,2]
[351788556,1738788647739,-1445.94,0.00013835,2]
[351788558,1738788647752,-2283.23,0.00013835,2]
[351788560,1738788647763,-500.0,0.00013835,2]
[351788562,1738788647775,-557.37,0.00013835,2]
[351788564,1738788647784,-988.3,0.00013835,2]
[351788566,1738788647795,-1687.35,0.00013835,2]
[351788568,1738788647806,-796.21,0.00013835,2]
[351788570,1738788647818,-885.64,0.00013835,2]
[351788572,1738788647827,-500.0,0.00013835,2]
[351788573,1738788647837,-500.0,0.00013835,2]
[351788575,1738788647847,-559.11612596,0.00013835,2]
[351788578,1738788647859,-151.0,0.00013835,2]
[351788579,1738788647870,-924.52,0.00013835,2]
[351788581,1738788647879,-1834.15,0.00013835,2]
[351788584,1738788647889,-901.29,0.00013835,2]
[351788585,1738788647900,-500.0,0.00013835,2]
[351788588,1738788647911,-500.0,0.00013835,2]
[351788590,1738788647922,-151.0,0.00013835,2]
[351788592,1738788647933,-500.0,0.00013835,2]
[351788594,1738788647943,-821.92,0.00013835,2]
[351788596,1738788647954,-4424.8,0.00013835,2]
[351788598,1738788647964,-3024.83,0.00013835,2]
[351788600,1738788647978,-500.0,0.00013835,2]
[351788602,1738788647989,-1377.94,0.00013835,2]
[351788604,1738788648000,-500.0,0.00013835,2]
[351788606,1738788648011,-500.0,0.00013835,2]
[351788608,1738788648022,-500.0,0.00013835,2]
[351788610,1738788648032,-500.0,0.00013835,2]
[351788612,1738788648043,-399.95504933,0.00013835,2]
[351788614,1738788648054,-500.0,0.00013835,2]
[351788616,1738788648064,-500.0,0.00013835,2]
[351788618,1738788648074,-524.45,0.00013835,2]
[351788620,1738788648084,-500.0,0.00013835,2]
[351788622,1738788648096,-500.0,0.00013835,2]
[351788624,1738788648106,-151.0,0.00013835,2]
[351788626,1738788648116,-500.0,0.00013835,2]
[351788628,1738788648126,-2825.29,0.00013835,2]
[351788630,1738788648135,-2652.6,0.00013835,2]
[351788632,1738788648146,-500.0,0.00013835,2]
[351788634,1738788648156,-2914.66,0.00013835,2]
[351788636,1738788648167,-841.09,0.00013835,2]
[351788638,1738788648178,-500.0,0.00013835,2]
[351788640,1738788648189,-500.0,0.00013835,2]
[351788642,1738788648199,-1605.9,0.00013835,2]
[351788645,1738788648210,-500.0,0.00013835,2]
[351788647,1738788648220,-575.61,0.00013835,2]
[351788649,1738788648232,-500.0,0.00013835,2]
[351788651,1738788648244,-120096.66,0.00013835,2]
[351788653,1738788648254,-536.73,0.00013835,2]
[351788655,1738788648265,-2570.67,0.00013835,2]
[351788657,1738788648276,-500.0,0.00013835,2]
[351788659,1738788648286,-500.0,0.00013835,2]
[351788661,1738788648297,-404.37488654,0.00013835,2]
[351788662,1738788648307,-500.0,0.00013835,2]
[351788665,1738788648319,-1064.77,0.00013835,2]
[351788667,1738788648330,-500.0,0.00013835,2]
[351788669,1738788648341,-500.0,0.00013835,2]
[351788671,1738788648352,-536.44656176,0.00013835,2]
[351788673,1738788648364,-500.0,0.00013835,2]
[351788675,1738788648375,-5069.96,0.00013835,2]
[351788677,1738788648386,-7969.7,0.00013835,2]
[351788679,1738788648397,-227.3,0.00013835,2]
[351788681,1738788648408,-500.0,0.00013835,2]
[351788683,1738788648418,-6982.07,0.00013835,2]
[351788685,1738788648428,-500.0,0.00013835,2]
[351788687,1738788648439,-684.69,0.00013835,2]
[351788689,1738788648448,-500.0,0.00013835,2]
[351788691,1738788648459,-500.0,0.00013835,2]
[351788693,1738788648469,-500.0,0.00013835,2]
[351788695,1738788648480,-1027.29,0.00013835,2]
[351788697,1738788648491,-151.0,0.00013835,2]
[351788699,1738788648502,-706.71,0.00013835,2]
[351788701,1738788648513,-3105.37,0.00013835,2]
[351788703,1738788648524,-3730.84,0.00013835,2]
[351788705,1738788648535,-500.0,0.00013835,2]
[351788707,1738788648546,-500.0,0.00013835,2]
[351788709,1738788648556,-500.0,0.00013835,2]
[351788711,1738788648567,-2911.4,0.00013835,2]
[351788713,1738788648578,-500.0,0.00013835,2]
[351788715,1738788648589,-2683.47,0.00013835,2]
[351788717,1738788648599,-500.0,0.00013835,2]
[351788719,1738788648610,-698.49,0.00013835,2]
[351788721,1738788648621,-500.0,0.00013835,2]
[351788723,1738788648632,-500.0,0.00013835,2]
[351788725,1738788648642,-500.0,0.00013835,2]
[351788728,1738788648654,-500.0,0.00013835,2]
[351788730,1738788648665,-500.0,0.00013835,2]
[351788732,1738788648675,-585.39,0.00013835,2]
[351788734,1738788648686,-500.0,0.00013835,2]
[351788736,1738788648700,-500.0,0.00013835,2]
[351788738,1738788648718,-928.33,0.00013835,2]
[351788740,1738788648744,-500.0,0.00013835,2]
[351788742,1738788648779,-500.0,0.00013835,2]
[351788744,1738788648810,-500.0,0.00013835,2]
[351788746,1738788648833,-500.0,0.00013835,2]
[351788748,1738788648862,-518.12389522,0.00013835,2]
[351788750,1738788648886,-33200.17,0.00013835,2]
[351788752,1738788648907,-500.0,0.00013835,2]
[351788754,1738788648928,-500.0,0.00013835,2]
[351788756,1738788648952,-2522.78,0.00013835,2]
[351788758,1738788648974,-500.0,0.00013835,2]
[351788760,1738788649001,-662.08,0.00013835,2]
[351788762,1738788649016,-500.0,0.00013835,2]
[351788764,1738788649026,-500.0,0.00013835,2]
[351788766,1738788649036,-500.0,0.00013835,2]
[351788768,1738788649046,-500.0,0.00013835,2]
[351788770,1738788649055,-500.0,0.00013835,2]
[351788772,1738788649064,-625.74218619,0.00013835,2]
[351788774,1738788649074,-500.0,0.00013835,2]
[351788776,1738788649083,-3499.01,0.00013835,2]
[351788778,1738788649092,-1035.58,0.00013835,2]
[351788780,1738788649102,-500.0,0.00013835,2]
[351788782,1738788649111,-1189.27,0.00013835,2]
[351788784,1738788649120,-509.7,0.00013835,2]
[351788786,1738788649129,-500.0,0.00013835,2]
[351788788,1738788649140,-500.0,0.00013835,2]
[351788790,1738788649150,-5783.75,0.00013835,2]
[351788792,1738788649160,-841.85,0.00013835,2]
[351788794,1738788649169,-500.0,0.00013835,2]
[351788796,1738788649178,-500.0,0.00013835,2]
[351788798,1738788649188,-500.0,0.00013835,2]
[351788800,1738788649198,-603.61,0.00013835,2]
[351788802,1738788649207,-572.01539065,0.00013835,2]
[351788804,1738788649217,-661.55,0.00013835,2]
[351788806,1738788649226,-500.0,0.00013835,2]
[351788808,1738788649236,-500.0,0.00013835,2]
[351788810,1738788649246,-665.32,0.00013835,2]
[351788812,1738788649257,-816.61,0.00013835,2]
[351788814,1738788649269,-1082.04,0.00013835,2]
[351788816,1738788649279,-4818.43,0.00013835,2]
[351788818,1738788649288,-1532.63,0.00013835,2]
[351788820,1738788649298,-500.0,0.00013835,2]
[351788822,1738788649308,-500.0,0.00013835,2]
[351788824,1738788649318,-564.17792908,0.00013835,2]
[351788826,1738788649328,-2630.72,0.00013835,2]
[351788828,1738788649338,-500.0,0.00013835,2]
[351788830,1738788649348,-2727.6,0.00013835,2]
[351788833,1738788649358,-500.0,0.00013835,2]
[351788835,1738788649368,-500.0,0.00013835,2]
[351788837,1738788649379,-600.01,0.00013835,2]
[351788839,1738788649389,-521.38,0.00013835,2]
[351788841,1738788649398,-500.0,0.00013835,2]
[351788843,1738788649409,-2262.08,0.00013835,2]
[351788845,1738788649419,-874.3,0.00013835,2]
[351788847,1738788649428,-500.0,0.00013835,2]
[351788849,1738788649438,-22.02292869,0.00013835,2]
[351788953,1738788650564,-500.0,0.00013697,2]
[351788955,1738788650573,-311.56,0.00013697,2]
[351788997,1738788651180,-188.44,0.00013697,2]
[351788999,1738788651190,-500.0,0.00013697,2]
[351789001,1738788651198,-500.0,0.00013697,2]
[351789003,1738788651208,-500.0,0.00013697,2]
[351789005,1738788651216,-500.0,0.00013697,2]
[351789007,1738788651223,-500.0,0.00013697,2]
[351789009,1738788651233,-500.0,0.00013697,2]
[351789012,1738788651243,-500.0,0.00013697,2]
[351789014,1738788651252,-500.0,0.00013697,2]
[351789016,1738788651260,-280.58392395,0.00013697,2]
[351789018,1738788651268,-500.0,0.00013697,2]
[351789020,1738788651276,-500.0,0.00013697,2]
[351789022,1738788651285,-500.0,0.00013697,2]
[351789024,1738788651294,-500.0,0.00013697,2]
[351789026,1738788651302,-500.0,0.00013697,2]
[351789028,1738788651310,-500.0,0.00013697,2]
[351789029,1738788651317,-500.0,0.00013697,2]
[351789031,1738788651325,-500.0,0.00013697,2]
[351789033,1738788651332,-500.0,0.00013697,2]
[351789035,1738788651341,-500.0,0.00013697,2]
[351789037,1738788651350,-500.0,0.00013697,2]
[351789039,1738788651360,-500.0,0.00013697,2]
[351789041,1738788651369,-500.0,0.00013697,2]
[351789044,1738788651379,-500.0,0.00013697,2]
[351789045,1738788651388,-500.0,0.00013697,2]
[351789048,1738788651398,-500.0,0.00013697,2]
[351789050,1738788651407,-500.0,0.00013697,2]
[351789051,1738788651416,-500.0,0.00013697,2]
[351789054,1738788651426,-500.0,0.00013697,2]
[351789055,1738788651436,-500.0,0.00013697,2]
[351789057,1738788651445,-500.0,0.00013697,2]
[351789059,1738788651455,-500.0,0.00013697,2]
[351789061,1738788651464,-500.0,0.00013697,2]
[351789063,1738788651474,-500.0,0.00013697,2]
[351789065,1738788651484,-619.65,0.00013698,2]
[351789067,1738788651493,-500.0,0.00013698,2]
[351789070,1738788651505,-500.0,0.00013698,2]
[351789072,1738788651514,-641.10707131,0.00013835,2]
[351789073,1738788651524,-500.0,0.00013835,2]
[351789075,1738788651534,-500.0,0.00013835,2]
[351789078,1738788651543,-7949.79,0.00013835,2]
[351789080,1738788651553,-649.99,0.00013835,2]
[351789082,1738788651563,-2683.42136874,0.00013835,2]
[351789085,1738788651587,-9605.86863126,0.00013835,2]
[351789087,1738788651597,-500.0,0.00013835,2]
[351789089,1738788651607,-737.12,0.00013835,2]
[351789091,1738788651618,-500.0,0.00013835,2]
[351789093,1738788651627,-500.0,0.00013835,2]
[351789095,1738788651636,-500.0,0.00013835,2]
[351789097,1738788651646,-500.0,0.00013835,2]
[351789099,1738788651655,-1901.6,0.00013835,2]
[351789102,1738788651664,-1301.58,0.00013835,2]
[351789104,1738788651674,-781.66,0.00013835,2]
[351789105,1738788651685,-500.0,0.00013835,2]
[351789107,1738788651695,-885.54,0.00013835,2]
[351789109,1738788651704,-4860.0,0.00013835,2]
[351789111,1738788651714,-1476.6,0.00013835,2]
[351789113,1738788651724,-163.46763951,0.00013835,2]
[351789115,1738788651734,-500.0,0.00013835,2]
[351789117,1738788651744,-2649.07,0.00013835,2]
[351789119,1738788651754,-529.24,0.00013835,2]
[351789121,1738788651764,-785.13,0.00013835,2]
[351789123,1738788651774,-500.0,0.00013835,2]
[351789125,1738788651785,-500.0,0.00013835,2]
[351789127,1738788651795,-1184.65,0.00013835,2]
[351789129,1738788651805,-500.0,0.00013835,2]
[351789131,1738788651815,-1894.37,0.00013835,2]
[351789133,1738788651825,-500.0,0.00013835,2]
[351789135,1738788651835,-1049.34,0.00013835,2]
[351789137,1738788651845,-4483.2011251,0.00013835,2]
[351789140,1738788651858,-1752.9488749,0.00013835,2]
[351789142,1738788651867,-908.94,0.00013835,2]
[351789144,1738788651877,-500.0,0.00013835,2]
[351789146,1738788651887,-500.0,0.00013835,2]
[351789148,1738788651899,-500.0,0.00013835,2]
[351789150,1738788651910,-1543.4,0.00013835,2]
[351789152,1738788651919,-2587.64,0.00013835,2]
[351789154,1738788651929,-1084.41,0.00013835,2]
[351789155,1738788651938,-500.0,0.00013835,2]
[351789158,1738788651950,-500.0,0.00013835,2]
[351789159,1738788651959,-635.48,0.00013835,2]
[351789162,1738788651970,-500.0,0.00013835,2]
[351789164,1738788651981,-500.0,0.00013835,2]
[351789166,1738788651991,-500.0,0.00013835,2]
[351789168,1738788652006,-500.0,0.00013835,2]
[351789170,1738788652016,-6460.34,0.00013835,2]
[351789172,1738788652026,-500.0,0.00013835,2]
[351789174,1738788652036,-500.0,0.00013835,2]
[351789176,1738788652046,-500.0,0.00013835,2]
[351789178,1738788652056,-500.0,0.00013835,2]
[351789179,1738788652066,-500.0,0.00013835,2]
[351789182,1738788652076,-377.10387859,0.00013835,2]
[351789183,1738788652086,-11606.33,0.00013835,2]
[351789185,1738788652096,-513.42,0.00013835,2]
[351789188,1738788652106,-1043.78,0.00013835,2]
[351789190,1738788652116,-611.69,0.00013835,2]
[351789192,1738788652126,-533.1,0.00013835,2]
[351789194,1738788652136,-500.0,0.00013835,2]
[351789196,1738788652145,-500.0,0.00013835,2]
[351789214,1738788652316,-500.0,0.00013835,2]
[351789216,1738788652326,-500.0,0.00013835,2]
[351789218,1738788652336,-500.0,0.00013835,2]
[351789220,1738788652346,-513.96,0.00013835,2]
[351789222,1738788652356,-265.34416505,0.00013835,2]
[351789224,1738788652366,-500.0,0.00013835,2]
[351789226,1738788652376,-7511.39,0.00013835,2]
[351789228,1738788652385,-557.45,0.00013835,2]
[351789230,1738788652395,-545.92,0.00013835,2]
[351789232,1738788652405,-964.76,0.00013835,2]
[351789234,1738788652414,-887.35,0.00013835,2]
[351789236,1738788652424,-664.96,0.00013835,2]
[351789238,1738788652434,-35074.3,0.00013835,2]
[351789240,1738788652444,-500.0,0.00013835,2]
[351789242,1738788652453,-500.0,0.00013835,2]
[351789244,1738788652463,-500.0,0.00013835,2]
[351789246,1738788652474,-596.3,0.00013835,2]
[351789248,1738788652484,-619.65,0.00013835,2]
[351789250,1738788652497,-894.40485615,0.00013872,2]
[351789252,1738788652508,-500.0,0.00013873,2]
[351789254,1738788652519,-500.0,0.00013972,2]
[351789256,1738788652529,-500.0,0.00013972,2]
[351789258,1738788652539,-500.0,0.00013972,2]
[351789260,1738788652549,-1248.32,0.00013972,2]
[351789262,1738788652558,-610.92,0.00013972,2]
[351789264,1738788652567,-539.93,0.00013972,2]
[351789266,1738788652577,-500.0,0.00013972,2]
[351789268,1738788652586,-500.0,0.00013972,2]
[351789270,1738788652596,-500.0,0.00013972,2]
[351789272,1738788652605,-500.0,0.00013972,2]
[351789274,1738788652614,-500.0,0.00013972,2]
[351789276,1738788652623,-721.96,0.00013972,2]
[351789278,1738788652633,-500.0,0.00013972,2]
[351789280,1738788652643,-500.0,0.00013972,2]
[351789282,1738788652652,-500.0,0.00013972,2]
[351789284,1738788652662,-500.0,0.00013972,2]
[351789286,1738788652671,-500.0,0.00013972,2]
[351789288,1738788652681,-500.0,0.00013972,2]
[351789290,1738788652690,-500.0,0.00013972,2]
[351789292,1738788652699,-500.0,0.00013972,2]
[351789294,1738788652708,-500.0,0.00013972,2]
[351789296,1738788652718,-503.97,0.00013972,2]
[351789298,1738788652727,-635.18,0.00013972,2]
[351789300,1738788652736,-500.0,0.00013972,2]
[351789302,1738788652746,-500.0,0.00013972,2]
[351789304,1738788652755,-500.0,0.00013972,2]
[351789306,1738788652764,-505.49035837,0.00013972,2]
[351789307,1738788652773,-500.0,0.00013972,2]
[351789309,1738788652783,-500.0,0.00013972,2]
[351789312,1738788652792,-590.19,0.00013972,2]
[351789314,1738788652802,-500.0,0.00013972,2]
[351789316,1738788652813,-500.0,0.00013972,2]
[351789318,1738788652822,-500.0,0.00013972,2]
[351789320,1738788652832,-359.85784373,0.00013972,2]
[351789322,1738788652842,-500.0,0.00013972,2]
[351789323,1738788652851,-541.5333478,0.00013972,2]
[351789326,1738788652861,-500.0,0.00013972,2]
[351789328,1738788652871,-151.0,0.00013972,2]
[351789329,1738788652881,-500.0,0.00013972,2]
[351789331,1738788652891,-783.46,0.00013972,2]
[351789333,1738788652902,-531.42375485,0.00013972,2]
[351789335,1738788652912,-500.0,0.00013972,2]
[351789337,1738788652921,-189.79448464,0.00013972,2]
[351789339,1738788652930,-1442.63,0.00013972,2]
[351789341,1738788652941,-292.68226245,0.00013972,2]
[351789343,1738788652950,-3449.98,0.00013972,2]
[351789345,1738788652959,-596.11651276,0.00013972,2]
[351789347,1738788652968,-768.87,0.00013972,2]
[351789349,1738788652978,-1091.08,0.00013972,2]
[351789351,1738788652988,-500.0,0.00013972,2]
[351789353,1738788652998,-500.0,0.00013972,2]
[351789355,1738788653007,-500.0,0.00013972,2]
[351789357,1738788653016,-432.43469808,0.00013972,2]
[351789359,1738788653026,-500.0,0.00013972,2]
[351789361,1738788653035,-500.0,0.00013972,2]
[351789363,1738788653045,-151.0,0.00013972,2]
[351789365,1738788653054,-529.19,0.00013972,2]
[351789367,1738788653063,-500.0,0.00013972,2]
[351789369,1738788653073,-500.0,0.00013972,2]
[351789371,1738788653082,-1100.61,0.00013972,2]
[351789373,1738788653091,-500.0,0.00013972,2]
[351789375,1738788653101,-500.0,0.00013972,2]
[351789377,1738788653110,-517.46965021,0.00013972,2]
[351789379,1738788653120,-500.0,0.00013972,2]
[351789381,1738788653129,-500.0,0.00013972,2]
[351789383,1738788653138,-500.0,0.00013972,2]
[351789385,1738788653148,-1241.32,0.00013972,2]
[351789387,1738788653157,-500.0,0.00013972,2]
[351789389,1738788653166,-500.0,0.00013972,2]
[351789391,1738788653175,-933.09,0.00013972,2]
[351789393,1738788653185,-500.0,0.00013972,2]
[351789395,1738788653194,-743.99,0.00013972,2]
[351789397,1738788653204,-503.39,0.00013972,2]
[351789399,1738788653214,-545.04,0.00013972,2]
[351789401,1738788653223,-753.51,0.00013972,2]
[351789403,1738788653233,-568.84,0.00013972,2]
[351789405,1738788653242,-500.0,0.00013972,2]
[351789407,1738788653255,-500.0,0.00013972,2]
[351789409,1738788653264,-308.47284582,0.00013972,2]
[351789411,1738788653273,-500.0,0.00013972,2]
[351789413,1738788653283,-500.0,0.00013972,2]
[351789415,1738788653292,-500.0,0.00013972,2]
[351789417,1738788653301,-500.0,0.00013972,2]
[351789419,1738788653311,-2330.51,0.00013972,2]
[351789421,1738788653320,-624.39,0.00013972,2]
[351789423,1738788653330,-1682.56,0.00013972,2]
[351789425,1738788653339,-500.0,0.00013972,2]
[351789427,1738788653348,-500.0,0.00013972,2]
[351789429,1738788653358,-825.52,0.00013972,2]
[351789431,1738788653367,-500.0,0.00013972,2]
[351789433,1738788653377,-500.0,0.00013972,2]
[351789435,1738788653386,-599.04,0.00013972,2]
[351789437,1738788653395,-500.0,0.00013972,2]
[351789438,1738788653404,-500.0,0.00013972,2]
[351789439,1738788653413,-500.0,0.00013972,2]
[351789440,1738788653423,-1815.68,0.00013972,2]
[351789441,1738788653432,-151.0,0.00013972,2]
[351789442,1738788653441,-798.36,0.00013972,2]
[351789443,1738788653450,-151.0,0.00013972,2]
[351789444,1738788653459,-986.67,0.00013972,2]
[351789445,1738788653469,-500.0,0.00013972,2]
[351789446,1738788653480,-500.0,0.00013972,2]
[351789447,1738788653489,-500.0,0.00013972,2]
[351789448,1738788653501,-575.3,0.00013972,2]
[351789449,1738788653511,-500.0,0.00013972,2]
[351789450,1738788653521,-2243.47,0.00013972,2]
[351789451,1738788653530,-500.0,0.00013972,2]
[351789452,1738788653539,-314.68494082,0.00013972,2]
[351789454,1738788653551,-794.02,0.00013972,2]
[351789456,1738788653560,-500.0,0.00013972,2]
[351789458,1738788653569,-500.0,0.00013972,2]
[351789460,1738788653579,-1424.28,0.00013972,2]
[351789462,1738788653588,-500.0,0.00013972,2]
[351789464,1738788653598,-1000.0,0.00013972,2]
[351789466,1738788653607,-658.96,0.00013972,2]
[351789468,1738788653617,-811.96,0.00013972,2]
[351789470,1738788653627,-500.0,0.00013972,2]
[351789472,1738788653636,-500.0,0.00013972,2]
[351789474,1738788653646,-667.92,0.00013972,2]
[351789476,1738788653656,-500.0,0.00013972,2]
[351789478,1738788653666,-687.26,0.00013972,2]
[351789479,1738788653675,-500.0,0.00013972,2]
[351789482,1738788653684,-500.0,0.00013972,2]
[351789483,1738788653693,-500.0,0.00013972,2]
[351789485,1738788653703,-500.0,0.00013972,2]
[351789487,1738788653713,-500.0,0.00013972,2]
[351789489,1738788653722,-1205.0,0.00013972,2]
[351789492,1738788653732,-1567.81,0.00013972,2]
[351789493,1738788653741,-500.0,0.00013972,2]
[351789495,1738788653754,-1036.56,0.00013972,2]
[351789497,1738788653764,-500.0,0.00013972,2]
[351789500,1738788653773,-1263.91,0.00013972,2]
[351789502,1738788653783,-500.0,0.00013972,2]
[351789503,1738788653792,-188.0,0.00013972,2]
[351789505,1738788653802,-500.0,0.00013972,2]
[351789507,1738788653811,-500.0,0.00013972,2]
[351789509,1738788653820,-500.0,0.00013972,2]
[351789511,1738788653830,-995.41,0.00013972,2]
[351789513,1738788653839,-2254.92,0.00013972,2]
[351789515,1738788653849,-500.0,0.00013972,2]
[351789518,1738788653858,-832.6,0.00013972,2]
[351789519,1738788653868,-1191.3,0.00013972,2]
[351789521,1738788653878,-151.0,0.00013972,2]
[351789524,1738788653887,-777.71,0.00013972,2]
[351789526,1738788653897,-500.0,0.00013972,2]
[351789528,1738788653910,-500.0,0.00013972,2]
[351789530,1738788653920,-673.97,0.00013972,2]
[351789532,1738788653929,-500.0,0.00013972,2]
[351789534,1738788653939,-500.0,0.00013972,2]